fUST/lending_fUST_20240710
["ID","MTS","AMOUNT","RATE_DAILY","PERIOD"]
[331634605,1720596642700,-305.755912,0.00034634,30]
[331634607,1720596642712,-5292.88975486,0.00034636,2]
[331634609,1720596642722,-1000.0,0.00034661,2]
[331634611,1720596642732,-235.51631079,0.0003467,2]
[331634613,1720596642742,-454.8056069,0.00034672,4]
[331634615,1720596642752,-394.36284654,0.0003468,4]
[331634617,1720596642762,-2944.38,0.0003469,3]
[331634619,1720596642771,-2453.65,0.0003469,3]
[331634621,1720596642780,-2044.7,0.0003469,3]
[331634623,1720596642790,-2000.0,0.0003469,2]
[331634625,1720596642800,-37987.09881171,0.000347,5]
[331636609,1720597629178,-178.236693,0.00021096,2]
[331636610,1720597629202,-150.0,0.000265,2]
[331636611,1720597629222,-178.236693,0.00027195,2]
[331636612,1720597629243,-219.5122439,0.0003138,2]
[331636627,1720597832478,-75.938805,0.0003138,2]
[331636628,1720597832487,-1514.73263833,0.0003138,4]
[331636930,1720597840754,-4096.76293431,0.0003138,4]
[331636932,1720597840764,-284.6000077,0.0003138,3]
[331636934,1720597840773,-1000.0,0.0003138,4]
[331636936,1720597840782,-160.0,0.00032917,3]
[331636938,1720597840791,-178.236693,0.00033295,2]
[331636940,1720597840801,-154.57491897,0.00033807,4]
[331636942,1720597840810,-154.57491897,0.00033807,4]
[331636944,1720597840820,-160.0,0.00033976,4]
[331636946,1720597840829,-4150.91754285,0.00033977,2]
[331636948,1720597840838,-5000.0,0.00034,33]
[331636950,1720597840848,-5292.88975486,0.00034326,2]
[331636952,1720597840857,-300.0,0.00034553,2]
[331636954,1720597840866,-600.0,0.0003456,2]
[331636955,1720597840876,-643.66349447,0.00034585,4]
[331636958,1720597840885,-404.42030993,0.0003459,2]
[331636960,1720597840897,-1000.0,0.00034669,2]
[331636961,1720597840906,-3319.38,0.0003467,3]
[331636963,1720597840915,-2766.15,0.0003467,3]
[331636965,1720597840925,-2305.13,0.0003467,3]
[331636967,1720597840935,-208.83853644,0.0003467,4]
[331636970,1720597840945,-4193.20201677,0.0003468,5]
[331636972,1720597840955,-11056.48768344,0.0003468,5]
[331637180,1720597846888,-366.6405652,0.00034375,2]
[331637182,1720597846898,-1920.94,0.0003468,3]
[331637184,1720597846911,-5.11148583,0.0003468,5]
[331637186,1720597846922,-38047.18000001,0.0003468,5]
[331637250,1720598706879,350.9,0.00010959,2]
[331637253,1720598774777,100000.0,0.00014998,2]
[331637256,1720598906526,-300.0,0.00016254,2]
[331637257,1720598906554,-300.0,0.00016254,2]
[331637258,1720598906582,-161.06569299,0.00016255,2]
[331637259,1720598906620,-761.06569299,0.00016255,2]
[331637260,1720598906654,-531.08014595,0.00016255,2]
[331637322,1720599038832,-236.9869895,0.00016223,2]
[331637323,1720599038844,-300.0,0.00016253,2]
[331637324,1720599038859,-57252.14585726,0.00016254,2]
[331637325,1720599038870,-33498.58981931,0.00016255,2]
[331637326,1720599038880,-42254.51324581,0.00016255,2]
[331637327,1720599038891,-843.86636,0.00017063,2]
[331637328,1720599038902,-1221.2098948,0.00017696,2]
[331637329,1720599038912,-420.0,0.00017878,2]
[331637330,1720599038923,-500.0,0.00018888,2]
[331637331,1720599038933,-500.0,0.00018888,2]
[331637332,1720599038943,-372.68813329,0.00018888,2]
[331637333,1720599038954,-229.11139405,0.00018888,2]
[331637334,1720599038964,-500.0,0.00018888,2]
[331637336,1720599038974,-500.0,0.00018888,2]
[331637337,1720599038984,-184.42769147,0.00018888,2]
[331637338,1720599038995,-500.0,0.00018888,2]
[331637340,1720599039005,-47615.3631151,0.00018889,2]
[331637342,1720599039016,-151.0,0.00018889,2]
[331637343,1720599039026,-17261.11502567,0.00018899,2]
[331637344,1720599039036,-1538.64555122,0.000189,2]
[331637345,1720599039045,-480.0,0.00019666,2]
[331637346,1720599039064,-385.33783146,0.0002,2]
[331637347,1720599039074,-350.538976,0.00021096,2]
[331637349,1720599039084,-604.6189009,0.00021319,2]
[331637351,1720599039094,-1410.5136947,0.00021859,2]
[331637353,1720599039105,-166.666666,0.00021918,2]
[331637355,1720599039115,-151.0,0.00021918,2]
[331637357,1720599039125,-166.666666,0.00022773,2]
[331637366,1720599039205,-151.0,0.0002281,7]
[331637368,1720599039220,-151.0,0.0002281,7]
[331637370,1720599039231,-1275.42666247,0.0002281,5]
[331637372,1720599039241,-47615.3631151,0.0002281,3]
[331637374,1720599039251,-151.0,0.0002282,7]
[331637376,1720599039261,-151.0,0.0002282,7]
[331637378,1720599039271,-193.018498,0.0002282,7]
[331637380,1720599039280,-24900.0,0.0002282,2]
[331637382,1720599039290,-200.0,0.000229,2]
[331637384,1720599039303,-174.19152608,0.00022914,2]
[331637386,1720599039314,-208.59398018,0.00022914,2]
[331637388,1720599039324,-150.511695,0.00022933,2]
[331637390,1720599039335,-200.0,0.00022933,2]
[331637392,1720599039345,-310.73688205,0.00022933,2]
[331637394,1720599039355,-168.0,0.00023,2]
[331637396,1720599039367,-168.0,0.00023288,2]
[331637399,1720599039379,-624.1210333,0.00023348,2]
[331637400,1720599039388,-166.666666,0.00023627,2]
[331637402,1720599039399,-1538.64555122,0.000239,2]
[331637404,1720599039409,-168.0,0.00024164,2]
[331637406,1720599039419,-162.4133347,0.00024233,2]
[331637408,1720599039429,-400.0,0.0002427,2]
[331637410,1720599039440,-400.0,0.00024303,2]
[331637413,1720599039449,-166.666666,0.00024482,2]
[331637415,1720599039459,-620.20605167,0.00024515,2]
[331637417,1720599039469,-168.0,0.00025373,2]
[331637418,1720599039478,-161.776957,0.00025444,2]
[331637420,1720599039488,-155.36732,0.00025491,7]
[331637422,1720599039498,-95230.7262301,0.00025491,3]
[331637424,1720599039509,-500.0,0.000255,2]
[331637426,1720599039519,-612.7318617,0.000255,2]
[331637428,1720599039529,-270.80081906,0.000255,2]
[331637430,1720599039539,-500.0,0.000255,2]
[331637432,1720599039552,-500.0,0.000255,2]
[331637434,1720599039562,-500.0,0.000255,2]
[331637436,1720599039571,-421.35260999,0.000255,2]
[331637438,1720599039581,-167.650171,0.00025501,7]
[331637440,1720599039590,-52142.01242753,0.00025501,2]
[331637442,1720599039599,-843.86636,0.00025595,2]
[331637444,1720599039608,-500.030685,0.00025869,5]
[331637446,1720599039619,-600.0,0.00026047,2]
[331637448,1720599039629,-252.30199023,0.0002608,2]
[331637451,1720599039640,-3000.0,0.000265,2]
[331637453,1720599039650,-3000.0,0.0002651,2]
[331637455,1720599039661,-3000.0,0.0002652,2]
[331637457,1720599039671,-47615.3631151,0.0002652,3]
[331637459,1720599039681,-3000.0,0.0002653,2]
[331637460,1720599039691,-3000.0,0.0002654,2]
[331637462,1720599039701,-3000.0,0.0002655,2]
[331637465,1720599039712,-4356.926484,0.0002656,2]
[331637467,1720599039723,-350.538976,0.00027195,2]
[331637469,1720599039733,-150.09377191,0.0002725,2]
[331637471,1720599039743,-47615.3631151,0.00027387,3]
[331637473,1720599039754,-500.0,0.00027397,2]
[331637474,1720599039764,-500.0,0.00027397,2]
[331637477,1720599039774,-500.0,0.00027397,2]
[331637478,1720599039784,-248.60729687,0.00027397,2]
[331637480,1720599039794,-500.0,0.00027397,2]
[331637482,1720599039807,-500.0,0.00027397,2]
[331637484,1720599039818,-500.0,0.00027397,2]
[331637486,1720599039827,-500.0,0.00027397,2]
[331637488,1720599039837,-500.0,0.00027397,2]
[331637490,1720599039846,-500.0,0.00027397,2]
[331637492,1720599039855,-500.0,0.00027397,2]
[331637494,1720599039864,-500.0,0.00027397,2]
[331637496,1720599039874,-500.0,0.00027397,2]
[331637498,1720599039885,-500.0,0.00027397,2]
[331637500,1720599039895,-500.0,0.00027397,2]
[331637502,1720599039904,-500.0,0.00027397,2]
[331637504,1720599039914,-500.0,0.00027397,2]
[331637506,1720599039923,-500.0,0.00027397,2]
[331637508,1720599039932,-500.0,0.00027397,2]
[331637510,1720599039941,-500.0,0.00027397,2]
[331637512,1720599039951,-500.0,0.00027397,2]
[331637514,1720599039961,-500.0,0.00027397,2]
[331637516,1720599039970,-500.0,0.00027397,2]
[331637518,1720599039979,-500.0,0.00027397,2]
[331637520,1720599039988,-500.0,0.00027397,2]
[331637522,1720599039998,-500.0,0.00027397,2]
[331637524,1720599040007,-500.0,0.00027397,2]
[331637526,1720599040017,-297.39776588,0.00027397,2]
[331637528,1720599040026,-500.0,0.00027397,2]
[331637530,1720599040035,-500.0,0.00027397,2]
[331637532,1720599040044,-500.0,0.00027397,2]
[331637534,1720599040056,-500.0,0.00027397,2]
[331637537,1720599040065,-500.0,0.00027397,2]
[331637539,1720599040074,-500.0,0.00027397,2]
[331637541,1720599040083,-500.0,0.00027397,2]
[331637543,1720599040091,-500.0,0.00027397,2]
[331637545,1720599040100,-500.0,0.00027397,2]
[331637547,1720599040110,-500.0,0.00027397,2]
[331637549,1720599040119,-500.0,0.00027397,2]
[331637551,1720599040128,-500.0,0.00027397,2]
[331637553,1720599040137,-500.0,0.00027397,2]
[331637555,1720599040146,-500.0,0.00027397,2]
[331637556,1720599040155,-500.0,0.00027397,2]
[331637558,1720599040164,-500.0,0.00027397,2]
[331637560,1720599040174,-500.0,0.00027397,2]
[331637562,1720599040183,-500.0,0.00027397,2]
[331637564,1720599040193,-500.0,0.00027397,2]
[331637567,1720599040203,-500.0,0.00027397,2]
[331637569,1720599040212,-500.0,0.00027397,2]
[331637571,1720599040221,-500.0,0.00027397,2]
[331637575,1720599040231,-500.0,0.00027397,2]
[331637577,1720599040240,-500.0,0.00027397,2]
[331637579,1720599040249,-500.0,0.00027397,2]
[331637581,1720599040259,-500.0,0.00027397,2]
[331637583,1720599040268,-151.0,0.00027397,7]
[331637585,1720599040277,-151.0,0.00027397,7]
[331637587,1720599040287,-266.761945,0.00027397,7]
[331637589,1720599040296,-266.761945,0.00027397,7]
[331637591,1720599040308,-151.0,0.00027397,7]
[331637594,1720599040317,-151.0,0.00027397,7]
[331637595,1720599040327,-151.0,0.00027397,7]
[331637598,1720599040336,-151.0,0.00027397,7]
[331637600,1720599040346,-762.660328,0.00027397,7]
[331637602,1720599040356,-762.660328,0.00027397,7]
[331637604,1720599040368,-209.698295,0.00027397,7]
[331637606,1720599040377,-209.698295,0.00027397,7]
[331637608,1720599040386,-209.698295,0.00027397,7]
[331637610,1720599040395,-209.698295,0.00027397,7]
[331637612,1720599040404,-209.698295,0.00027397,7]
[331637614,1720599040414,-209.698295,0.00027397,7]
[331637616,1720599040423,-151.0,0.00027397,7]
[331637618,1720599040432,-209.698295,0.00027397,7]
[331637620,1720599040440,-163.177901,0.00027397,7]
[331637622,1720599040449,-209.698295,0.00027397,7]
[331637624,1720599040459,-209.698295,0.00027397,7]
[331637631,1720599040467,-209.698295,0.00027397,7]
[331637634,1720599040534,-209.698295,0.00027397,7]
[331637636,1720599040543,-209.698295,0.00027397,7]
[331637638,1720599040554,-394.15192,0.00027397,2]
[331637640,1720599040564,-394.15192,0.00027397,2]
[331637642,1720599040573,-394.15192,0.00027397,2]
[331637644,1720599040582,-394.15192,0.00027397,2]
[331637646,1720599040594,-394.15192,0.00027397,2]
[331637648,1720599040603,-394.15192,0.00027397,2]
[331637650,1720599040612,-394.15192,0.00027397,2]
[331637652,1720599040621,-394.15192,0.00027397,2]
[331637654,1720599040631,-394.15192,0.00027397,2]
[331637656,1720599040639,-394.15192,0.00027397,2]
[331637658,1720599040648,-394.15192,0.00027397,2]
[331637660,1720599040658,-394.15192,0.00027397,2]
[331637662,1720599040667,-264.379763,0.00027397,7]
[331637664,1720599040676,-264.379763,0.00027397,7]
[331637666,1720599040686,-264.379763,0.00027397,7]
[331637668,1720599040695,-264.379763,0.00027397,7]
[331637670,1720599040704,-264.379763,0.00027397,7]
[331637672,1720599040713,-264.379763,0.00027397,7]
[331637674,1720599040722,-264.379763,0.00027397,7]
[331637676,1720599040732,-264.379763,0.00027397,7]
[331637678,1720599040741,-264.379763,0.00027397,7]
[331637680,1720599040750,-264.379763,0.00027397,7]
[331637682,1720599040759,-264.379763,0.00027397,7]
[331637683,1720599040768,-264.379763,0.00027397,7]
[331637685,1720599040777,-264.379763,0.00027397,7]
[331637688,1720599040787,-264.379763,0.00027397,7]
[331637689,1720599040797,-248.909497,0.00027397,7]
[331637692,1720599040808,-248.909497,0.00027397,7]
[331637694,1720599040817,-248.909497,0.00027397,7]
[331637695,1720599040827,-248.909497,0.00027397,7]
[331637698,1720599040836,-248.909497,0.00027397,7]
[331637700,1720599040845,-248.909497,0.00027397,7]
[331637702,1720599040855,-248.909497,0.00027397,7]
[331637703,1720599040865,-151.0,0.00027397,7]
[331637706,1720599040874,-151.0,0.00027397,7]
[331637707,1720599040883,-248.909497,0.00027397,7]
[331637709,1720599040892,-151.0,0.00027397,7]
[331637711,1720599040901,-248.909497,0.00027397,7]
[331637713,1720599040911,-151.0,0.00027397,7]
[331637716,1720599040920,-248.909497,0.00027397,7]
[331637719,1720599040929,-151.0,0.00027397,7]
[331637722,1720599040938,-151.0,0.00027397,7]
[331637725,1720599040948,-151.0,0.00027397,7]
[331637729,1720599040957,-248.909497,0.00027397,7]
[331637730,1720599040967,-248.909497,0.00027397,7]
[331637732,1720599040977,-248.909497,0.00027397,7]
[331637734,1720599040986,-248.909497,0.00027397,7]
[331637736,1720599040996,-1902.568805,0.00027397,7]
[331637738,1720599041005,-1902.568805,0.00027397,7]
[331637740,1720599041014,-1902.568805,0.00027397,7]
[331637742,1720599041023,-1902.568805,0.00027397,7]
[331637745,1720599041033,-1902.568805,0.00027397,7]
[331637746,1720599041042,-1902.568805,0.00027397,7]
[331637748,1720599041051,-1902.568805,0.00027397,7]
[331637750,1720599041060,-1902.568805,0.00027397,7]
[331637752,1720599041069,-1902.568805,0.00027397,7]
[331637754,1720599041079,-1902.568805,0.00027397,7]
[331637756,1720599041088,-1902.568805,0.00027397,7]
[331637758,1720599041097,-1902.568805,0.00027397,7]
[331637760,1720599041107,-1902.568805,0.00027397,7]
[331637762,1720599041116,-1902.568805,0.00027397,7]
[331637764,1720599041126,-216.730068,0.00027397,120]
[331637766,1720599041136,-342.315555,0.00027397,7]
[331637768,1720599041146,-342.315555,0.00027397,7]
[331637770,1720599041155,-342.315555,0.00027397,7]
[331637772,1720599041165,-342.315555,0.00027397,7]
[331637774,1720599041174,-342.315555,0.00027397,7]
[331637776,1720599041183,-342.315555,0.00027397,7]
[331637778,1720599041193,-342.315555,0.00027397,7]
[331637780,1720599041202,-342.315555,0.00027397,7]
[331637782,1720599041212,-342.315555,0.00027397,7]
[331637784,1720599041221,-342.315555,0.00027397,7]
[331637786,1720599041230,-342.315555,0.00027397,7]
[331637789,1720599041240,-342.315555,0.00027397,7]
[331637791,1720599041250,-342.315555,0.00027397,7]
[331637793,1720599041260,-342.315555,0.00027397,7]
[331637794,1720599041269,-342.315555,0.00027397,7]
[331637796,1720599041279,-342.315555,0.00027397,7]
[331637798,1720599041288,-342.315555,0.00027397,7]
[331637800,1720599041297,-342.315555,0.00027397,7]
[331637802,1720599041308,-342.315555,0.00027397,7]
[331637804,1720599041318,-342.31556483,0.00027397,7]
[331637806,1720599041327,-569.151142,0.00027397,7]
[331637808,1720599041337,-569.151142,0.00027397,7]
[331637810,1720599041346,-569.151142,0.00027397,7]
[331637812,1720599041355,-569.151142,0.00027397,7]
[331637814,1720599041365,-569.151142,0.00027397,7]
[331637816,1720599041375,-569.151142,0.00027397,7]
[331637818,1720599041384,-569.151142,0.00027397,7]
[331637820,1720599041393,-569.151142,0.00027397,7]
[331637822,1720599041403,-569.151142,0.00027397,7]
[331637824,1720599041412,-569.151142,0.00027397,7]
[331637826,1720599041421,-569.151142,0.00027397,7]
[331637828,1720599041431,-569.151142,0.00027397,7]
[331637830,1720599041440,-569.151142,0.00027397,7]
[331637832,1720599041449,-904.820281,0.00027397,7]
[331637834,1720599041459,-569.151142,0.00027397,7]
[331637836,1720599041468,-904.820281,0.00027397,7]
[331637839,1720599041478,-569.151142,0.00027397,7]
[331637840,1720599041488,-904.820281,0.00027397,7]
[331637842,1720599041498,-569.151142,0.00027397,7]
[331637844,1720599041508,-904.820281,0.00027397,7]
[331637846,1720599041518,-904.820281,0.00027397,7]
[331637848,1720599041527,-569.151142,0.00027397,7]
[331637850,1720599041537,-904.820281,0.00027397,7]
[331637852,1720599041547,-569.151142,0.00027397,7]
[331637854,1720599041559,-904.820281,0.00027397,7]
[331637856,1720599041569,-569.151142,0.00027397,7]
[331637858,1720599041578,-904.820281,0.00027397,7]
[331637860,1720599041587,-569.15114623,0.00027397,7]
[331637862,1720599041597,-904.820281,0.00027397,7]
[331637864,1720599041606,-904.820281,0.00027397,7]
[331637866,1720599041615,-904.820281,0.00027397,7]
[331637868,1720599041624,-904.820281,0.00027397,7]
[331637870,1720599041633,-904.820281,0.00027397,7]
[331637878,1720599041699,-904.820281,0.00027397,7]
[331637880,1720599041708,-904.820281,0.00027397,7]
[331637882,1720599041718,-904.820281,0.00027397,7]
[331637884,1720599041727,-904.820281,0.00027397,7]
[331637886,1720599041736,-904.820281,0.00027397,7]
[331637888,1720599041745,-904.820281,0.00027397,7]
[331637890,1720599041754,-904.820276,0.00027397,7]
[331637892,1720599041764,-183.476519,0.00027397,7]
[331637894,1720599041773,-183.476519,0.00027397,7]
[331637896,1720599041783,-183.476519,0.00027397,7]
[331637898,1720599041792,-183.476519,0.00027397,7]
[331637900,1720599041804,-367.18392,0.00027397,7]
[331637901,1720599041813,-367.18392,0.00027397,7]
[331637903,1720599041822,-183.476519,0.00027397,7]
[331637905,1720599041831,-367.18392,0.00027397,7]
[331637907,1720599041840,-183.476519,0.00027397,7]
[331637909,1720599041849,-367.18392,0.00027397,7]
[331637911,1720599041858,-183.476519,0.00027397,7]
[331637913,1720599041868,-367.18392,0.00027397,7]
[331637915,1720599041877,-367.18392,0.00027397,7]
[331637917,1720599041887,-183.476519,0.00027397,7]
[331637919,1720599041895,-367.18392,0.00027397,7]
[331637921,1720599041905,-183.476519,0.00027397,7]
[331637923,1720599041914,-367.18392,0.00027397,7]
[331637925,1720599041923,-183.476519,0.00027397,7]
[331637927,1720599041933,-367.18392,0.00027397,7]
[331637929,1720599041942,-183.476519,0.00027397,7]
[331637931,1720599041951,-367.18392,0.00027397,7]
[331637933,1720599041960,-367.18392,0.00027397,7]
[331637935,1720599041969,-183.476519,0.00027397,7]
[331637937,1720599041978,-367.18392,0.00027397,7]
[331637938,1720599041988,-183.476519,0.00027397,7]
[331637939,1720599041997,-183.476519,0.00027397,7]
[331637940,1720599042006,-183.476519,0.00027397,7]
[331637941,1720599042015,-183.476519,0.00027397,7]
[331637942,1720599042024,-367.18392,0.00027397,7]
[331637943,1720599042033,-183.476519,0.00027397,7]
[331637944,1720599042042,-367.18392,0.00027397,7]
[331637945,1720599042053,-367.18392,0.00027397,7]
[331637946,1720599042062,-183.476519,0.00027397,7]
[331637947,1720599042071,-367.18392,0.00027397,7]
[331637948,1720599042081,-183.476519,0.00027397,7]
[331637949,1720599042091,-367.18392,0.00027397,7]
[331637950,1720599042100,-367.18392,0.00027397,7]
[331637951,1720599042109,-183.476527,0.00027397,7]
[331637952,1720599042118,-367.18392,0.00027397,7]
[331637953,1720599042129,-367.183921,0.00027397,7]
[331637954,1720599042140,-151.0,0.00027397,7]
[331637955,1720599042149,-151.0,0.00027397,7]
[331637956,1720599042158,-212.545102,0.00027397,7]
[331637957,1720599042167,-151.0,0.00027399,7]
[331637958,1720599042177,-155.34845,0.00027399,7]
[331637959,1720599042186,-264.379763,0.00027399,7]
[331637960,1720599042195,-264.379763,0.00027399,7]
[331637961,1720599042204,-248.909497,0.00027399,7]
[331637962,1720599042213,-151.0,0.00027399,7]
[331637963,1720599042223,-248.909497,0.00027399,7]
[331637964,1720599042232,-1902.568805,0.00027399,7]
[331637965,1720599042241,-1902.568805,0.00027399,7]
[331637966,1720599042250,-168.0,0.0002791,2]
[331637967,1720599042259,-1000.0,0.00027998,30]
[331637968,1720599042268,-229.31696231,0.00028,30]
[331637969,1720599042277,-920.40097132,0.00028019,30]
[331637970,1720599042287,-833.69391706,0.00028019,2]
[331637971,1720599042296,-151.0,0.00028021,7]
[331637972,1720599042308,-151.0,0.00028021,7]
[331637973,1720599042316,-266.761945,0.00028021,7]
[331637974,1720599042325,-266.761945,0.00028021,7]
[331637975,1720599042334,-762.660328,0.00028021,7]
[331637976,1720599042343,-209.698295,0.00028021,7]
[331637977,1720599042352,-209.698295,0.00028021,7]
[331637979,1720599042362,-394.15192,0.00028021,2]
[331637980,1720599042372,-394.15192,0.00028021,2]
[331637981,1720599042381,-1538.64555122,0.000289,2]
[331637983,1720599042390,-168.0,0.00028997,2]
[331637985,1720599042400,-264.379763,0.00029783,7]
[331637987,1720599042409,-264.379763,0.00029783,7]
[331637989,1720599042419,-248.909497,0.00029783,7]
[331637991,1720599042428,-151.0,0.00029783,7]
[331637993,1720599042437,-248.909497,0.00029783,7]
[331637995,1720599042447,-1902.568805,0.00029783,7]
[331637997,1720599042456,-1902.568805,0.00029783,7]
[331637999,1720599042466,-151.0,0.00029793,7]
[331638001,1720599042476,-151.0,0.00029793,7]
[331638003,1720599042486,-266.761945,0.00029793,7]
[331638005,1720599042496,-266.761945,0.00029793,7]
[331638007,1720599042506,-762.660328,0.00029793,7]
[331638009,1720599042516,-209.698295,0.00029793,7]
[331638011,1720599042525,-209.698295,0.00029793,7]
[331638013,1720599042535,-394.15192,0.00029793,2]
[331638015,1720599042544,-394.15192,0.00029793,2]
[331638017,1720599042559,-264.379763,0.00029793,7]
[331638019,1720599042569,-264.379755,0.00029793,7]
[331638020,1720599042578,-248.909497,0.00029793,7]
[331638022,1720599042587,-158.826316,0.00029793,7]
[331638024,1720599042597,-248.909497,0.00029793,7]
[331638027,1720599042607,-1902.568805,0.00029793,7]
[331638029,1720599042617,-1902.568809,0.00029793,7]
[331638030,1720599042626,-30000.0,0.00029793,2]
[331638033,1720599042636,-151.0,0.00029803,7]
[331638034,1720599042645,-160.437585,0.00029803,7]
[331638036,1720599042655,-160.358734,0.00029803,7]
[331638038,1720599042665,-151.0,0.00029803,7]
[331638040,1720599042675,-160.1527,0.00029803,7]
[331638042,1720599042684,-1500.000357,0.00029803,7]
[331638044,1720599042694,-1500.000357,0.00029803,7]
[331638046,1720599042703,-1500.000357,0.00029803,7]
[331638048,1720599042713,-1500.000357,0.00029803,7]
[331638050,1720599042723,-151.0,0.00029803,7]
[331638059,1720599042789,-285.382396,0.00029803,7]
[331638060,1720599042798,-381.36855,0.00029803,7]
[331638063,1720599042809,-381.36855,0.00029803,7]
[331638064,1720599042818,-381.36855,0.00029803,7]
[331638066,1720599042828,-381.36855,0.00029803,7]
[331638069,1720599042838,-266.761945,0.00029803,7]
[331638070,1720599042848,-266.761945,0.00029803,7]
[331638072,1720599042858,-762.660328,0.00029803,7]
[331638074,1720599042867,-762.660336,0.00029803,7]
[331638076,1720599042877,-209.698295,0.00029803,7]
[331638078,1720599042886,-209.698295,0.00029803,7]
[331638080,1720599042896,-209.698295,0.00029803,7]
[331638082,1720599042906,-209.698302,0.00029803,7]
[331638085,1720599042916,-394.15192,0.00029803,2]
[331638087,1720599042927,-394.15192,0.00029803,2]
[331638088,1720599042936,-394.15192,0.00029803,2]
[331638090,1720599042946,-394.15193,0.00029803,2]
[331638092,1720599042956,-159.012451,0.00029813,7]
[331638094,1720599042965,-204.639258,0.00029813,7]
[331638096,1720599042975,-155.688682,0.00029813,7]
[331638098,1720599042984,-266.761945,0.00029813,7]
[331638100,1720599042994,-266.761945,0.00029813,7]
[331638102,1720599043003,-151.0,0.00029823,7]
[331638104,1720599043013,-153.152185,0.00029823,7]
[331638106,1720599043023,-1500.000357,0.00029879,7]
[331638108,1720599043032,-1500.000357,0.00029879,7]
[331638110,1720599043042,-381.36855,0.00029879,7]
[331638112,1720599043052,-381.36855,0.00029879,7]
[331638114,1720599043061,-266.761945,0.00029879,7]
[331638116,1720599043073,-266.761945,0.00029879,7]
[331638118,1720599043082,-1500.000357,0.00029903,7]
[331638120,1720599043091,-1500.000357,0.00029903,7]
[331638123,1720599043100,-381.36855,0.00029903,7]
[331638126,1720599043110,-381.36855,0.00029903,7]
[331638128,1720599043119,-170.47875529,0.0003,4]
[331638130,1720599043129,-181.0,0.0003,2]
[331638132,1720599043138,-168.0,0.00030447,2]
[331638134,1720599043148,-150.0,0.00030802,2]
[331638136,1720599043159,-151.0,0.00031063,4]
[331638138,1720599043168,-191.04644475,0.0003128,2]
[331638140,1720599043177,-151.0,0.0003168,4]
[331638142,1720599043187,-500.0,0.00032,3]
[331638144,1720599043196,-151.0,0.00032297,4]
[331638146,1720599043205,-150.0,0.00032877,2]
[331638148,1720599043214,-151.0,0.00032914,5]
[331638150,1720599043223,-1406.0,0.00032948,2]
[331638152,1720599043233,-1500.000357,0.0003296,7]
[331638154,1720599043242,-1500.000357,0.0003296,7]
[331638156,1720599043251,-381.36855,0.0003296,7]
[331638159,1720599043261,-381.36855,0.0003296,7]
[331638161,1720599043271,-266.761945,0.0003296,7]
[331638163,1720599043280,-266.761945,0.0003296,7]
[331638166,1720599043289,-266.761945,0.0003296,7]
[331638167,1720599043298,-266.761945,0.0003296,7]
[331638169,1720599043309,-151.0,0.0003299,7]
[331638172,1720599043318,-500.0,0.00033,4]
[331638174,1720599043327,-292.55335768,0.00033,7]
[331638176,1720599043336,-350.538976,0.00033295,2]
[331638178,1720599043346,-151.07303259,0.00033332,2]
[331638181,1720599043356,-42888.37692498,0.00033333,2]
[331638183,1720599043368,-175.830361,0.00033453,7]
[331638185,1720599043377,-1500.000357,0.00033453,7]
[331638187,1720599043386,-1500.000357,0.00033453,7]
[331638189,1720599043395,-381.36855,0.00033453,7]
[331638190,1720599043405,-381.36855,0.00033453,7]
[331638193,1720599043414,-266.761945,0.00033453,7]
[331638194,1720599043423,-266.761945,0.00033453,7]